bitfinex/quotes_ETHUSD_20250616
["timestamp","ask_amount","ask_price","bid_price","bid_amount"]
[1750118043327,3.90900113,2558.2,2557.7,8.259]
[1750118043528,13.90872718,2558.4,2557.7,3.90972454]
[1750118043529,8.70486622,2557.9,2557.7,3.90972454]
[1750118043805,8.70486622,2557.9,2557.4,3.91015717]
[1750118044007,8.70486622,2557.9,2557.5,3.9100478]
[1750118044230,8.70486622,2557.9,2557.2,4.7413243]
[1750118044541,12.61436377,2557.9,2557.3,3.91023813]
[1750118044920,8.70486622,2557.9,2557.4,3.91019288]
[1750118045382,14.04658577,2557.9,2557.3,3.91032171]
[1750118045538,14.95332413,2557.9,2557.3,3.91032171]
[1750118046049,14.95332139,2557.9,2557.2,6.11250953]
[1750118046254,11.04385024,2557.9,2557.4,3.91021006]
[1750118046752,14.95333091,2557.9,2557.2,2.202]
[1750118046937,14.95333091,2557.9,2556.7,3.91125611]
[1750118046938,3.91095215,2557.0,2556.4,3.91166146]
[1750118047132,15.16023137,2557.8,2556.6,3.91133333]
[1750118047133,8.70486622,2556.9,2556.6,3.91133333]
[1750118047440,8.70486622,2556.9,2556.5,3.9115247]
[1750118048150,8.70486622,2556.9,2556.4,3.9117105]
[1750118048351,0.90673836,2556.8,2556.5,3.91157172]
[1750118048513,0.90673836,2556.8,2556.3,2.9634]
[1750118048713,0.90673836,2556.8,2556.4,3.91173708]
[1750118049164,2.348,2556.7,2556.3,6.11390339]
[1750118049465,0.90673836,2556.8,2556.4,0.03911632]
[1750118049664,10.90673836,2556.9,2556.4,3.95072596]
[1750118049869,8.70486622,2556.6,2556.1,0.04]
[1750118050054,0.90673836,2556.8,2556.5,3.91159788]
[1750118050255,1.12659666,2557.5,2556.6,0.03911212]
[1750118050458,0.05870566,2557.5,2556.8,4.67253892]
[1750118050825,0.05870566,2557.5,2556.9,2.203]
[1750118051031,0.05870566,2557.5,2557.4,3.91022131]
[1750118051247,11.71500409,2557.6,2557.4,3.91022131]
[1750118051456,11.71500409,2557.6,2557.0,3.910833]
[1750118051661,0.90940409,2557.6,2557.5,3.91006842]
[1750118051868,8.70486622,2557.7,2556.8,0.7614]
[1750118052171,0.8087,2557.5,2556.8,2.203]
[1750118052383,10.90947807,2557.6,2557.4,3.91022131]
[1750118052530,10.90947807,2557.6,2556.8,6.11401636]
[1750118052734,12.78273328,2557.6,2557.3,3.91035434]
[1750118052965,10.90947807,2557.6,2557.3,3.91035434]
[1750118053148,10.90947807,2557.6,2557.4,3.91019035]
[1750118053359,10.90947807,2557.6,2557.3,3.91031193]
[1750118053685,0.90947807,2557.6,2556.8,2.203]
[1750118053833,0.90947807,2557.5,2557.0,3.91074176]
[1750118054034,4.81948027,2557.6,2557.0,3.91074176]
[1750118054230,8.70486622,2557.4,2556.9,3.91097892]
[1750118054482,8.70486622,2557.4,2556.8,2.203]
[1750118054483,8.70486622,2557.0,2556.8,2.203]
[1750118055138,8.70486622,2557.0,2556.8,6.10109057]
[1750118055340,8.70486622,2557.0,2556.8,2.19004]
[1750118055534,8.70486622,2557.0,2556.5,3.91153738]
[1750118055769,8.70486622,2557.0,2556.2,2.203]
[1750118055770,8.70486622,2556.6,2556.2,2.203]
[1750118056169,8.70486622,2556.6,2556.3,3.91188409]
[1750118056477,13.91170922,2556.5,2556.1,0.04]
[1750118056774,10.9090944,2556.5,2556.1,3.95219938]
[1750118056978,18.1360944,2556.5,2556.1,3.9521422]
[1750118057141,22.61692317,2556.2,2556.1,0.04]
[1750118057338,10.0,2556.0,2555.0,2.9913]
[1750118057536,8.70486622,2555.4,2555.0,2.203]
[1750118057987,8.70486622,2555.4,2554.9,0.2117709]
[1750118058340,10.0,2555.3,2555.0,3.91389432]
[1750118058650,1.13538469,2556.1,2555.1,0.03913821]
[1750118058840,1.13538469,2556.5,2555.7,0.8265]
[1750118059036,0.90742935,2556.5,2556.3,3.91190392]
[1750118059239,0.90742935,2556.8,2556.7,3.91129189]
[1750118059473,0.90742935,2557.2,2556.7,0.03910886]
[1750118059682,1.52496103,2557.4,2557.1,3.91053544]
[1750118059683,0.90742935,2557.3,2557.1,3.91053544]
[1750118059855,0.90742935,2557.3,2557.2,3.91052713]
[1750118060050,0.90742935,2557.4,2557.3,3.91037422]
[1750118060249,1.23249003,2557.4,2556.6,0.8003]
[1750118060548,0.32506068,2557.4,2557.0,3.91083226]
[1750118060746,10.32506068,2557.4,2557.1,3.91068006]
[1750118060963,11.23249003,2557.4,2557.0,6.11479695]
[1750118061286,11.23249003,2557.4,2557.1,3.91059877]
[1750118061458,1.23249003,2557.4,2557.2,3.91039661]
[1750118061652,10.32506068,2557.4,2557.3,3.91037422]
[1750118062165,0.32506068,2557.4,2557.3,3.91037422]
[1750118063489,0.32506068,2557.4,2557.3,4.71467422]
[1750118064043,0.32506068,2557.4,2557.3,14.15467422]
[1750118064246,0.04,2557.9,2557.8,3.90960982]
[1750118065378,0.04,2557.9,2557.8,3.94869884]
[1750118065572,0.04,2557.9,2557.8,11.13660982]
[1750118066277,0.04,2557.9,2557.8,3.90960982]
[1750118066948,9.54706622,2557.9,2557.4,6.11311522]
[1750118067148,9.54706622,2557.9,2557.4,2.203]
[1750118067149,1.34563915,2557.8,2557.4,2.203]
[1750118067490,9.54706622,2557.9,2557.5,0.03910055]
[1750118067789,9.54706622,2557.9,2557.5,3.9099781]
[1750118068086,9.54706622,2557.9,2557.4,3.91022131]
[1750118068286,9.54706622,2557.9,2557.3,2.203]
[1750118068488,9.54706622,2557.9,2557.6,3.90981727]
[1750118068674,10.50177284,2557.9,2557.2,3.91047286]
[1750118068879,10.0,2557.4,2557.0,12.17476606]
[1750118069091,10.0,2557.4,2557.0,8.264]
[1750118069400,10.0,2557.4,2557.1,3.91061253]
[1750118069582,10.0,2557.4,2557.0,8.264]
[1750118069747,8.70486622,2557.1,2556.6,6.07142373]
[1750118070087,0.39314239,2557.2,2556.6,2.16]
[1750118070293,0.7757,2557.3,2556.9,3.91087083]
[1750118070589,2.26148859,2557.4,2556.8,0.8142]
[1750118070764,10.0,2557.5,2556.8,0.85330749]
[1750118070964,10.0,2557.5,2557.2,3.91050978]
[1750118071349,8.70486622,2557.6,2557.0,0.03910305]
[1750118071549,0.04,2557.9,2557.2,2.16]
[1750118071786,10.04,2557.9,2557.3,7.221]
[1750118071991,0.04,2557.9,2557.3,7.221]
[1750118072173,10.04,2557.9,2557.7,3.9096514]
[1750118072577,10.04,2557.9,2557.8,3.90960982]
[1750118072905,0.04,2557.9,2557.8,3.90960982]
[1750118073094,0.04,2557.9,2557.8,13.32570429]
[1750118073392,0.007183,2557.9,2557.8,24.10680982]
[1750118073606,0.04,2558.9,2558.8,4.72828191]
[1750118073807,0.36505655,2558.9,2558.8,4.76735274]
[1750118073948,0.36505655,2558.9,2558.8,14.14735274]
[1750118074151,0.36505655,2558.9,2558.7,8.263]
[1750118074359,9.06992277,2558.9,2558.7,8.263]
[1750118074656,9.06992277,2558.9,2558.8,3.90808191]
[1750118074855,14.66102153,2558.8,2557.7,9.0111]
[1750118075090,10.0,2558.2,2557.8,2.16]
[1750118075263,8.70486622,2558.5,2557.9,3.90944477]
[1750118075483,10.0,2558.4,2558.0,3.90917419]
[1750118075890,10.0,2558.4,2558.0,6.06917419]
[1750118076055,10.0,2558.4,2558.0,2.16]
[1750118076787,10.0,2558.4,2558.0,6.06928498]
[1750118077001,10.0,2558.4,2558.1,3.90915132]
[1750118077301,10.0,2558.4,2558.0,2.16]
[1750118078223,10.0,2558.4,2558.0,6.06928909]
[1750118078427,10.0,2558.4,2558.0,2.16]
[1750118078576,10.0,2558.6,2558.0,2.16]
[1750118078776,10.0,2558.6,2558.2,3.90889913]
[1750118079204,10.0,2558.6,2558.1,3.90913128]
[1750118079391,10.0,2558.6,2558.1,3.90910296]
[1750118079621,10.0,2558.6,2558.2,2.16]
[1750118079799,10.7529,2558.8,2558.1,3.90904731]
[1750118079980,13.09345743,2558.8,2558.2,2.16]
[1750118080417,3.09345743,2558.8,2558.2,6.06890233]
[1750118080620,10.7529,2558.8,2558.2,6.06890233]
[1750118080802,14.66100835,2558.8,2558.2,2.16]
[1750118081115,8.70486622,2558.5,2558.2,2.16]
[1750118081292,12.61351728,2558.5,2558.2,2.16]
[1750118081489,8.70486622,2558.5,2558.2,2.16]
[1750118081703,12.61341509,2558.5,2558.2,2.16]
[1750118082308,8.70486622,2558.5,2558.1,2.16]
[1750118082606,12.61341954,2558.5,2558.1,2.16]
[1750118082815,12.61347383,2558.5,2558.1,2.16]
[1750118083053,8.70486622,2558.5,2558.1,6.06913577]
[1750118083263,12.61343295,2558.5,2558.1,2.16]
[1750118083584,0.04,2558.9,2558.8,3.90808191]
[1750118083874,8.74486622,2558.9,2558.7,2.159]
[1750118084020,0.04,2558.9,2558.7,2.159]
[1750118084218,0.04,2558.9,2558.8,3.90808191]
[1750118084435,0.04,2558.9,2558.7,6.06717889]
[1750118084633,0.04,2558.9,2558.8,3.90808191]
[1750118085358,0.04,2558.9,2558.8,11.08408191]
[1750118085555,0.04,2558.9,2558.1,0.7717]
[1750118085741,10.0,2558.7,2558.2,6.06791817]
[1750118086060,8.70486622,2558.5,2558.4,3.90869293]
[1750118086571,0.8005,2558.9,2558.4,7.173]
[1750118087080,0.8005,2558.9,2558.5,3.90851746]
[1750118087443,0.8005,2558.9,2558.6,3.90835282]
[1750118087636,0.04,2558.9,2558.4,7.173]
[1750118087836,8.70486622,2558.7,2558.3,3.90876011]
[1750118088065,8.70486622,2558.7,2557.8,0.8212]
[1750118088341,8.70486622,2558.3,2557.9,9.331]
[1750118088537,8.70486622,2558.3,2558.1,3.90905898]
[1750118088741,8.70486622,2558.3,2558.1,3.9091249]
[1750118089490,8.70486622,2558.3,2557.6,3.90985978]
[1750118089491,11.05286622,2558.2,2556.7,0.8212]
[1750118089653,8.70486622,2557.8,2557.6,3.90979703]
[1750118089859,8.70486622,2557.8,2557.6,6.06879703]
[1750118090257,8.70486622,2558.2,2557.6,2.159]
[1750118090474,10.0,2558.5,2557.6,2.19809688]
[1750118090692,0.04,2558.9,2558.5,3.90845705]
[1750118091006,0.04,2558.9,2558.7,3.90815342]
[1750118091291,10.04,2558.9,2558.5,6.06743845]
[1750118091496,10.04,2558.9,2558.6,3.90838739]
[1750118091862,10.04,2558.9,2558.7,3.90821201]
[1750118092258,0.04,2558.9,2558.7,3.90815065]
[1750118092471,0.04,2558.9,2558.5,2.159]
[1750118092472,0.04,2558.9,2558.8,3.90808191]
[1750118092679,0.04,2558.9,2558.7,3.90817193]
[1750118092999,0.04,2558.9,2558.5,6.06750127]
[1750118093178,0.04,2558.9,2558.8,3.90808191]
[1750118093689,0.04,2558.9,2558.7,3.90817917]
[1750118093855,0.04,2558.9,2558.1,3.90904035]
[1750118094184,0.04,2558.9,2558.2,9.306]
[1750118094185,2.348,2558.5,2558.2,9.306]
[1750118094396,10.04,2558.9,2558.6,3.908288]
[1750118094599,10.04,2558.9,2558.6,3.90826507]
[1750118094780,10.04,2558.9,2558.7,3.90818074]
[1750118095354,10.04,2558.9,2558.5,3.90849041]
[1750118095355,10.04,2558.9,2558.5,3.90848742]
[1750118095583,10.04,2558.9,2558.6,3.90838167]
[1750118096253,10.04,2558.9,2558.4,6.06764714]
[1750118096254,0.04,2558.9,2558.8,3.90808191]
[1750118097668,0.04,2558.9,2558.8,13.20508191]
[1750118098684,0.04,2558.9,2558.2,3.9089244]
[1750118098864,0.04,2558.9,2558.8,3.90808191]
[1750118099264,0.04,2558.9,2558.6,6.01230466]
[1750118099563,4.69130316,2558.8,2557.5,0.7969]
[1750118099764,8.70486622,2558.2,2557.5,0.7969]
[1750118100017,8.70486622,2558.2,2557.9,3.90937447]
[1750118100147,8.70486622,2558.2,2557.5,0.7969]
[1750118100148,9.0919867,2558.2,2557.5,0.7969]
[1750118100359,10.7733,2558.1,2557.5,7.14]
[1750118100651,10.7733,2558.1,2557.1,6.01468006]
[1750118100652,11.05286622,2557.8,2557.1,6.01468006]
[1750118100847,8.70486622,2557.4,2557.2,3.91052133]
[1750118101250,10.0,2557.3,2557.1,2.104]
[1750118101455,14.68371254,2557.3,2557.1,2.104]
[1750118101673,10.7733,2557.3,2557.1,2.104]
[1750118102383,3.91076466,2557.1,2556.5,3.91159788]
[1750118102584,8.70486622,2556.6,2556.3,2.104]
[1750118103100,2.348,2556.4,2556.1,0.04]
[1750118103310,3.91144488,2556.6,2556.1,0.04]
[1750118103509,10.0,2556.6,2556.1,0.04]
[1750118104020,10.0,2556.6,2556.4,3.91171947]
[1750118104316,10.0,2556.6,2556.5,3.91159788]
[1750118104476,10.0,2556.6,2556.3,3.9118621]
[1750118104675,10.0,2556.6,2556.1,0.04]
[1750118104977,10.8088,2556.2,2556.1,0.04]
[1750118105170,0.8088,2556.2,2556.1,3.95221]
[1750118105419,10.8192,2556.2,2556.1,0.04]
[1750118105719,22.44425695,2556.2,2556.1,0.04]
[1750118106028,22.44425695,2556.2,2554.9,7.3797709]
[1750118106029,10.0,2555.8,2555.0,2.105]
[1750118106319,10.0,2555.5,2555.1,3.91374114]
[1750118106526,10.0,2555.5,2555.0,2.105]
[1750118106527,10.0,2555.5,2554.9,0.2117709]
[1750118106688,10.0,2555.5,2555.1,3.91367185]
[1750118106877,10.0,2555.5,2555.1,3.91372931]
[1750118107278,8.70486622,2555.2,2554.9,0.2117709]
[1750118107690,8.70486622,2555.2,2554.9,4.12579207]
[1750118107877,8.70486622,2555.2,2554.9,0.2117709]
[1750118108196,21.08078557,2555.1,2554.9,0.2117709]
[1750118108398,10.0,2555.1,2554.9,0.2117709]
[1750118108583,2.26177039,2555.5,2554.9,0.2117709]
[1750118108584,0.8081,2556.1,2555.1,3.91370508]
[1750118108785,0.8081,2556.1,2555.9,3.91251613]
[1750118108974,3.91040982,2557.3,2555.9,3.91251613]
[1750118108975,0.8081,2556.7,2555.9,2.105]
[1750118109188,0.8081,2556.7,2555.9,2.14411917]
[1750118109392,8.70486622,2556.5,2555.2,0.7579]
[1750118109593,8.70486622,2555.3,2554.7,0.2658482]
[1750118109794,10.0,2555.0,2554.7,0.2658482]
[1750118110610,10.8238,2555.4,2555.0,3.91378553]
[1750118110934,11.21582482,2555.4,2554.8,3.91417024]
[1750118111090,11.21582482,2555.4,2554.7,6.2851601]
[1750118111291,11.21582482,2555.4,2555.0,3.91387517]
[1750118111513,10.0,2555.0,2554.7,0.2658482]
[1750118111716,10.0,2555.0,2554.7,4.1801095]
[1750118112112,10.0,2555.0,2554.9,4.12581841]
[1750118112312,10.0,2555.0,2554.9,0.2117709]
[1750118113428,8.70486622,2555.1,2554.9,0.2117709]
[1750118113429,10.0,2555.1,2554.9,0.2117709]
[1750118113618,17.208,2555.0,2554.9,0.2117709]
[1750118114529,24.65455549,2555.0,2554.9,0.2117709]
[1750118114738,1.3575,2554.8,2554.7,0.2658482]
[1750118115031,19.51236622,2554.8,2554.7,0.2658482]
[1750118115230,30.65056694,2554.8,2554.7,0.2658482]
[1750118115433,31.20056694,2554.8,2554.7,0.2658482]
[1750118115735,35.01029452,2554.8,2554.7,0.2658482]
[1750118116120,35.01029452,2554.8,2553.8,3.91569627]
[1750118116121,0.7638,2554.0,2553.8,3.91569627]
[1750118116321,0.7638,2554.0,2553.7,3.91582828]
[1750118116630,8.70486622,2554.1,2553.5,3.91610669]
[1750118116838,7.22,2554.2,2553.4,12.1792653]
[1750118117048,8.70486622,2553.9,2553.4,8.213]
[1750118117458,9.09797198,2553.9,2553.7,3.91586916]
[1750118117596,8.70486622,2554.3,2553.5,0.03915913]
[1750118117800,16.72826622,2554.7,2553.8,0.7855]
[1750118118117,9.83315395,2554.7,2554.4,3.91477202]
[1750118118452,7.54888773,2554.6,2554.4,3.91478242]
[1750118118651,10.32588773,2554.5,2554.4,3.91478242]
[1750118118965,10.32588773,2554.5,2553.9,6.02154509]
[1750118118966,10.32588773,2554.5,2553.9,2.106]
[1750118119097,8.70486622,2554.3,2554.1,3.91517828]
[1750118119299,8.70486622,2554.3,2553.9,2.106]
[1750118119526,8.70486622,2554.3,2554.2,3.91512019]
[1750118119913,8.70486622,2554.3,2553.9,2.106]
[1750118120105,17.217,2554.2,2553.5,4.70166364]
[1750118120332,17.217,2554.2,2553.5,0.7855]
[1750118120611,17.217,2554.2,2553.3,2.107]
[1750118120612,8.70486622,2553.9,2553.8,3.91573341]
[1750118121242,2.348,2553.3,2553.1,3.91666951]
[1750118121409,0.782,2553.4,2553.3,3.91650021]
[1750118121740,8.70486622,2553.9,2553.2,3.1299]
[1750118122060,0.8086,2554.1,2553.3,2.313]
[1750118122415,0.8086,2554.1,2553.7,3.91577543]
[1750118122636,0.8086,2554.1,2553.8,3.91572351]
[1750118122829,8.70486622,2553.9,2553.8,3.91572351]
[1750118123002,0.8086,2554.1,2554.0,3.91542678]
[1750118123203,10.0,2554.2,2553.8,2.314]
[1750118123402,10.59827222,2554.2,2553.8,2.314]
[1750118123602,10.59827222,2554.2,2553.9,3.9154705]
[1750118124036,10.0,2554.2,2553.9,3.9154705]
[1750118124232,10.0,2554.2,2553.8,6.2297191]
[1750118124435,10.0,2554.2,2553.9,3.91552138]
[1750118124741,10.0,2554.2,2553.8,6.22971741]
[1750118124926,0.7842,2554.4,2554.3,3.91496691]
[1750118125125,9.10486308,2554.6,2554.3,3.91482069]
[1750118125326,9.10486308,2554.6,2554.3,3.91496691]
[1750118125507,0.39999686,2554.6,2553.8,3.0704]
[1750118125707,8.70486622,2554.5,2554.1,3.9152338]
[1750118125908,8.70486622,2554.5,2554.2,3.91503193]
[1750118126107,8.70486622,2554.5,2553.8,3.0704]
[1750118126338,8.70486622,2554.5,2554.0,3.91539347]
[1750118126531,1.63220645,2554.4,2554.1,3.91523541]
[1750118126836,7.02932667,2554.3,2553.9,3.91556684]
[1750118127025,7.02932667,2554.3,2554.0,3.91530782]
[1750118127224,7.02932667,2554.3,2554.0,3.91531996]
[1750118127428,10.40135508,2554.6,2554.0,3.91531996]
[1750118127429,7.43068175,2554.6,2554.0,2.314]
[1750118127631,1.13466525,2555.5,2554.8,3.91420072]
[1750118127632,7.02932667,2554.9,2554.8,3.91420072]
[1750118127829,7.02932667,2555.2,2555.1,3.91365961]
[1750118128328,7.41515609,2555.2,2555.0,3.91383362]
[1750118128525,7.41515609,2555.2,2554.7,2.314]
[1750118128724,7.41515609,2555.2,2555.0,3.91378218]
[1750118128927,7.41515609,2555.2,2555.1,3.91374114]
[1750118129135,0.38582942,2555.2,2555.1,3.91374114]
[1750118129333,7.02932667,2555.3,2555.0,3.91380582]
[1750118129514,7.02932667,2555.3,2555.2,3.91358797]
[1750118129515,17.02932667,2555.3,2555.2,3.91358797]
[1750118130404,17.02932667,2555.3,2555.1,3.91365652]
[1750118130611,17.02932667,2555.3,2555.2,3.91358797]
[1750118130812,17.02932667,2555.3,2555.1,3.91367853]
[1750118131023,10.0,2555.3,2555.2,3.91358797]
[1750118132542,10.39319198,2555.3,2555.2,3.91358797]
[1750118132742,10.39319198,2555.3,2555.1,3.91367996]
[1750118132943,10.0,2555.2,2554.7,3.91435393]
[1750118133240,7.02932667,2555.1,2554.8,2.314]
[1750118133954,7.02932667,2555.1,2554.8,6.22819458]
[1750118134360,7.02932667,2555.1,2554.8,2.314]
[1750118134716,7.02932667,2555.1,2554.8,6.22810124]
[1750118134955,7.02932667,2555.1,2554.9,3.9140228]
[1750118135257,0.39319198,2555.3,2555.2,3.91358797]
[1750118135415,0.39319198,2555.3,2554.6,8.271]
[1750118135416,10.0,2555.2,2554.9,2.313]
[1750118135612,7.02932667,2555.0,2554.9,2.313]
[1750118136058,17.02932667,2555.0,2554.9,2.313]
[1750118136354,10.0,2554.5,2553.9,6.22850782]
[1750118136556,7.02932667,2554.0,2553.9,3.91550782]
[1750118136744,7.02932667,2554.0,2553.8,6.22867941]
[1750118136947,7.02932667,2554.0,2553.8,2.313]
[1750118137263,10.0,2553.9,2553.8,2.313]
[1750118137418,0.8182,2553.8,2553.3,2.314]
[1750118137614,7.02932667,2553.4,2553.3,2.314]
[1750118137818,10.0,2553.3,2552.8,8.271]
[1750118138264,10.0,2553.3,2552.8,12.18816981]
[1750118138265,7.02932667,2553.0,2552.8,12.18816981]
[1750118138578,7.80122667,2553.0,2552.4,0.2146125]
[1750118138719,7.02932667,2552.5,2552.4,4.13236886]
[1750118138915,7.02932667,2552.5,2552.4,4.1324937]
[1750118139152,9.37732667,2552.5,2552.4,0.2146125]
[1750118139375,17.02932667,2552.5,2552.4,0.2146125]
[1750118139557,17.93835432,2552.5,2552.4,0.2146125]
[1750118139746,0.8322,2552.3,2551.7,3.9188591]
[1750118139973,0.8322,2552.3,2551.5,3.9192347]
[1750118139974,7.02932667,2552.0,2551.9,3.91864884]
[1750118140182,7.02932667,2552.0,2550.9,8.271]
[1750118140183,1.22603439,2552.3,2551.6,0.03918569]
[1750118140358,7.02932667,2551.8,2551.5,3.91920599]
[1750118140570,7.02932667,2551.8,2551.3,2.314]
[1750118140783,7.02932667,2551.4,2550.6,9.033]
[1750118140968,7.02932667,2551.1,2551.0,6.23402694]
[1750118141163,0.90724681,2551.6,2551.4,3.91936713]
[1750118141393,10.55,2551.6,2550.6,9.033]
[1750118141691,7.02932667,2551.1,2551.0,3.92003136]
[1750118141989,7.41,2551.7,2550.7,3.92049241]
[1750118141990,0.90717751,2551.5,2550.7,3.92049241]
[1750118142161,11.15183439,2552.3,2551.7,3.91895599]
[1750118142361,0.55,2551.9,2550.5,1.07357637]
[1750118142591,7.02932667,2550.9,2550.8,3.92033871]
[1750118142792,7.02932667,2550.9,2550.8,0.4966689]
[1750118143009,20.27564325,2550.9,2550.8,0.4966689]
[1750118143168,1.89650653,2551.3,2550.8,0.4966689]
[1750118143350,10.7623,2551.3,2551.0,3.91990213]
[1750118143550,11.14900156,2551.3,2550.8,0.4966689]
[1750118143788,8.81041058,2550.9,2550.8,0.4966689]
[1750118143962,26.26441058,2550.9,2550.8,0.4966689]
[1750118144163,0.38670156,2551.3,2550.8,0.4966689]
[1750118144375,10.0,2551.2,2550.8,0.4966689]
[1750118144576,8.81041058,2550.9,2550.8,0.4966689]
[1750118144877,9.19464308,2550.9,2550.8,0.4966689]
[1750118145057,19.19464308,2550.9,2550.8,0.4966689]
[1750118145252,21.19033739,2550.9,2550.8,0.4966689]
[1750118145489,21.74033739,2550.9,2550.8,0.4966689]
[1750118145695,29.20633739,2550.9,2550.8,0.4966689]
[1750118145877,10.3842325,2550.9,2550.8,0.4966689]
[1750118146589,8.81041058,2551.7,2551.2,3.91972405]
[1750118146764,8.81041058,2551.7,2551.5,3.91926098]
[1750118146964,41.38511338,2551.6,2551.2,0.4966689]
[1750118147167,41.38511338,2551.6,2550.6,3.92064612]
[1750118147168,0.55,2551.1,2550.6,3.92064612]
[1750118147489,18.81041058,2550.8,2550.5,0.26867637]
[1750118147693,8.81041058,2550.8,2550.5,0.26867637]
[1750118147992,0.8014,2550.7,2550.6,3.92064612]
[1750118148164,0.8014,2550.7,2550.5,0.26867637]
[1750118148165,10.0,2550.7,2550.5,0.26867637]
[1750118149092,8.81041058,2550.8,2550.7,3.92049241]
[1750118149297,18.2754,2551.1,2550.5,0.26867637]
[1750118149470,20.98398106,2551.1,2550.7,3.92037564]
[1750118149797,20.98398106,2551.1,2550.8,3.92033151]
[1750118149992,20.98398106,2551.1,2550.5,0.26867637]
[1750118150294,10.0,2550.7,2550.5,0.26867637]
[1750118150606,10.0,2550.7,2550.5,4.18945602]
[1750118150766,10.0,2550.7,2550.5,0.26867637]
[1750118150951,10.0,2550.7,2550.6,3.92064612]
[1750118152294,10.55724919,2550.7,2550.5,0.26867637]
[1750118152476,10.55724919,2550.7,2550.5,4.18946659]
[1750118152670,10.0,2550.7,2550.6,3.92064612]
[1750118153459,3.90698636,2551.1,2550.5,4.18946659]
[1750118153679,18.6534053,2551.1,2550.6,3.92055298]
[1750118154000,8.81041058,2550.8,2550.6,3.92055298]
[1750118154215,8.81041058,2550.8,2550.7,3.92049241]
[1750118154421,0.3970053,2551.1,2551.0,3.92003136]
[1750118154586,1.49223622,2552.3,2550.5,0.26867637]
[1750118154587,2.348,2551.4,2551.2,3.91962286]
[1750118154771,0.22820018,2551.3,2551.2,3.91972405]
[1750118155292,10.0,2551.2,2550.5,0.26867637]
[1750118155495,10.0,2550.6,2550.5,4.18947621]
[1750118155898,12.348,2550.9,2550.6,3.92064612]
[1750118156099,10.0,2550.9,2550.5,0.26867637]
[1750118156274,0.22820018,2551.3,2551.2,3.91972405]
[1750118156709,2.57620018,2551.3,2550.5,1.08097637]
[1750118156912,11.15841058,2551.0,2550.6,3.92055971]
[1750118157112,8.81041058,2551.0,2550.5,0.26867637]
[1750118157299,8.81041058,2551.0,2550.6,3.92064612]
[1750118157500,10.22820018,2551.3,2551.1,3.91987769]
[1750118157798,2.348,2551.0,2550.5,6.50336196]
[1750118158152,2.348,2551.0,2549.9,3.92162762]
[1750118158153,2.348,2550.2,2549.9,3.92162762]
[1750118158284,11.3318,2550.6,2550.3,3.92110732]
[1750118158285,8.81041058,2550.4,2550.3,3.92110732]
[1750118158484,10.0,2550.6,2550.0,2.314]
[1750118158808,0.77820018,2551.3,2550.1,0.03920928]
[1750118158809,10.0,2551.1,2550.1,0.03920928]
[1750118159011,10.0,2551.1,2550.8,3.92024731]
[1750118159186,12.00638794,2551.1,2550.0,2.314]
[1750118159390,10.0,2551.1,2551.0,3.92003136]
[1750118159701,10.0,2551.1,2550.0,2.35320299]
[1750118159702,0.22820018,2551.3,2551.2,3.91972405]
[1750118159899,0.22820018,2551.3,2551.0,3.91991807]
[1750118160107,0.22820018,2551.3,2551.1,3.91978053]
[1750118160288,10.22820018,2551.3,2550.7,6.23445941]
[1750118160475,0.22820018,2551.3,2551.2,3.91972405]
[1750118160679,12.87255414,2551.3,2550.6,3.1263]
[1750118160874,8.81041058,2551.1,2550.9,3.92011329]
[1750118161118,11.15841058,2551.1,2550.6,3.92058585]
[1750118161413,11.15841058,2551.1,2550.5,2.314]
[1750118161575,0.52455414,2551.3,2550.9,3.92017226]
[1750118161780,0.22820018,2551.3,2551.2,3.91972405]
[1750118162800,0.22820018,2551.3,2551.1,3.91986556]
[1750118163032,0.22820018,2551.3,2551.2,3.91972405]
[1750118163994,0.22820018,2551.3,2551.2,3.95891205]
[1750118164190,8.81041058,2552.2,2551.9,3.91860912]
[1750118164404,8.81041058,2552.2,2552.0,3.9184919]
[1750118164608,8.81041058,2552.6,2551.8,0.03918531]
[1750118164823,7.04111075,2552.2,2551.7,2.314]
[1750118165005,7.04111075,2552.2,2551.9,3.91854379]
[1750118165204,10.0,2552.1,2551.9,3.91854379]
[1750118165405,10.0,2552.1,2552.0,3.91849529]
[1750118165646,7.79621075,2552.7,2551.8,0.03918516]
[1750118165922,7.04111075,2552.8,2552.0,2.314]
[1750118166135,7.04111075,2553.0,2552.7,3.91732866]
[1750118166338,7.04111075,2553.0,2552.9,3.91711387]
[1750118166632,10.39503761,2553.0,2552.6,2.314]
[1750118166838,7.04111075,2552.7,2552.6,2.314]
[1750118167418,17.04111075,2552.7,2552.0,0.7663]
[1750118167697,7.74522182,2552.7,2552.1,2.314]
[1750118167898,10.0,2552.6,2552.1,3.9182818]
[1750118168098,17.04111075,2552.3,2552.2,6.23218822]
[1750118168430,7.04111075,2552.6,2552.3,3.91803471]
[1750118169037,7.04111075,2552.6,2552.2,2.314]
[1750118169237,7.04111075,2552.6,2552.2,6.23218148]
[1750118169431,7.04111075,2552.6,2552.3,3.91802431]
[1750118170010,17.04111075,2552.6,2552.2,6.2321283]
[1750118170333,10.0,2552.5,2552.2,2.314]
[1750118170536,10.0,2552.5,2551.6,0.7686]
[1750118170738,3.91926317,2551.5,2550.4,0.7686]
[1750118170900,7.04111075,2550.6,2550.4,4.68954385]
[1750118171097,7.04111075,2550.6,2550.1,2.313]
[1750118171301,7.04111075,2550.6,2550.2,3.92125137]
[1750118171496,3.92081751,2550.5,2550.1,2.313]
[1750118171708,7.04111075,2550.2,2550.1,6.23441484]
[1750118171908,7.04111075,2550.6,2550.2,3.92111651]
[1750118172133,7.04111075,2550.6,2550.1,3.9213601]
[1750118172438,10.0,2550.6,2550.0,3.0816]
[1750118172640,7.04111075,2551.0,2550.1,0.03921066]
[1750118172826,0.7601,2551.4,2550.8,3.92033871]
[1750118173162,3.91991604,2551.1,2550.6,2.313]
[1750118173338,7.04111075,2550.9,2550.5,3.92077584]
[1750118173500,7.04111075,2550.9,2550.3,2.314]
[1750118173900,7.04111075,2550.5,2550.3,2.314]
[1750118174101,7.04111075,2550.5,2550.0,3.40996572]
[1750118174297,7.04111075,2550.5,2550.0,1.09596572]
[1750118174498,7.04111075,2550.5,2550.1,2.314]